fUST/lending_fUST_20250715
["ID","MTS","AMOUNT","RATE_DAILY","PERIOD"]
[372108761,1752523848490,-460.0,0.0001726,2]
[372108762,1752523848499,-460.0,0.0001726,2]
[372108764,1752523848508,-460.0,0.0001726,2]
[372108766,1752523848518,-506.66037813,0.0001726,2]
[372108768,1752523848527,-460.0,0.0001726,2]
[372108770,1752523848536,-508.83,0.0001726,2]
[372108772,1752523848545,-460.0,0.0001726,2]
[372108774,1752523848555,-460.0,0.0001726,2]
[372108776,1752523848565,-460.0,0.0001726,2]
[372108778,1752523848575,-435.64467231,0.0001726,2]
[372108780,1752523848584,-460.0,0.0001726,2]
[372108782,1752523848593,-460.0,0.0001726,2]
[372108784,1752523848603,-936.8,0.0001726,2]
[372108786,1752523848612,-986.06,0.0001726,2]
[372108788,1752523848621,-460.0,0.0001726,2]
[372108790,1752523848631,-460.0,0.0001726,2]
[372108792,1752523848640,-460.0,0.0001726,2]
[372108794,1752523848650,-460.0,0.0001726,2]
[372108795,1752523848659,-751.76,0.0001726,2]
[372108797,1752523848668,-1466.15,0.0001726,2]
[372108799,1752523848678,-460.0,0.0001726,2]
[372108801,1752523848687,-460.0,0.0001726,2]
[372108803,1752523848696,-492.2,0.0001726,2]
[372108805,1752523848705,-460.0,0.0001726,2]
[372108807,1752523848715,-460.0,0.0001726,2]
[372108809,1752523848724,-460.0,0.0001726,2]
[372108811,1752523848734,-3285.73,0.0001726,2]
[372108813,1752523848743,-981.45,0.0001726,2]
[372108814,1752523848752,-460.0,0.0001726,2]
[372108816,1752523848761,-460.0,0.0001726,2]
[372108818,1752523848771,-460.0,0.0001726,2]
[372108820,1752523848780,-460.0,0.0001726,2]
[372108822,1752523848790,-460.0,0.0001726,2]
[372108824,1752523848800,-968.1,0.0001726,2]
[372108826,1752523848809,-460.0,0.0001726,2]
[372108828,1752523848819,-460.0,0.0001726,2]
[372108830,1752523848828,-460.0,0.0001726,2]
[372108832,1752523848837,-4398.49,0.0001726,2]
[372108834,1752523848847,-4209.19,0.0001726,2]
[372108836,1752523848858,-460.0,0.0001726,2]
[372108837,1752523848868,-460.0,0.0001726,2]
[372108839,1752523848877,-460.0,0.0001726,2]
[372108841,1752523848887,-460.0,0.0001726,2]
[372108843,1752523848896,-460.0,0.0001726,2]
[372108845,1752523848906,-460.0,0.0001726,2]
[372108847,1752523848915,-460.0,0.0001726,2]
[372108849,1752523848925,-468.4,0.0001726,2]
[372108851,1752523848934,-481.24,0.0001726,2]
[372108853,1752523848943,-460.0,0.0001726,2]
[372108855,1752523848952,-460.0,0.0001726,2]
[372108857,1752523848963,-645.53,0.0001726,2]
[372108859,1752523848972,-593.17,0.0001726,2]
[372108861,1752523848981,-460.0,0.0001726,2]
[372108862,1752523848991,-460.0,0.0001726,2]
[372108864,1752523849000,-460.0,0.0001726,2]
[372108866,1752523849008,-460.0,0.0001726,2]
[372108868,1752523849018,-1221.52,0.0001726,2]
[372108870,1752523849028,-460.0,0.0001726,2]
[372108872,1752523849037,-460.0,0.0001726,2]
[372108874,1752523849047,-460.0,0.0001726,2]
[372108876,1752523849056,-389.58274733,0.0001726,2]
[372108878,1752523849066,-621.62,0.0001726,2]
[372108880,1752523849075,-2631.55,0.0001726,2]
[372108882,1752523849084,-1620.37,0.0001726,2]
[372108884,1752523849093,-460.0,0.0001726,2]
[372108886,1752523849103,-576.25,0.0001726,2]
[372108887,1752523849113,-460.0,0.0001726,2]
[372108889,1752523849124,-392.01,0.0001726,2]
[372108891,1752523849136,-513.51,0.0001726,2]
[372108893,1752523849145,-460.0,0.0001726,2]
[372108895,1752523849155,-460.0,0.0001726,2]
[372108897,1752523849165,-1752.1,0.0001726,2]
[372108899,1752523849174,-460.0,0.0001726,2]
[372108901,1752523849184,-460.0,0.0001726,2]
[372108903,1752523849194,-460.0,0.0001726,2]
[372108904,1752523849204,-460.0,0.0001726,2]
[372108906,1752523849216,-489.86,0.0001726,2]
[372108908,1752523849226,-460.0,0.0001726,2]
[372108910,1752523849235,-460.0,0.0001726,2]
[372108912,1752523849245,-460.0,0.0001726,2]
[372108914,1752523849255,-701.36,0.0001726,2]
[372108916,1752523849264,-460.0,0.0001726,2]
[372108918,1752523849273,-460.0,0.0001726,2]
[372108920,1752523849283,-460.0,0.0001726,2]
[372108921,1752523849293,-460.0,0.0001726,2]
[372108923,1752523849302,-460.0,0.0001726,2]
[372108925,1752523849312,-460.0,0.0001726,2]
[372108927,1752523849322,-460.0,0.0001726,2]
[372108929,1752523849331,-1583.58,0.0001726,2]
[372108931,1752523849341,-520.12,0.0001726,2]
[372108933,1752523849352,-460.0,0.0001726,2]
[372108934,1752523849362,-822.66,0.0001726,2]
[372108936,1752523849372,-460.0,0.0001726,2]
[372108938,1752523849381,-634.84,0.0001726,2]
[372108940,1752523849390,-393.87297624,0.0001726,2]
[372108942,1752523849400,-460.0,0.0001726,2]
[372108944,1752523849409,-517.51736164,0.0001726,2]
[372108946,1752523849418,-779.7,0.0001726,2]
[372108948,1752523849428,-460.0,0.0001726,2]
[372108950,1752523849438,-519.83,0.0001726,2]
[372108951,1752523849447,-460.0,0.0001726,2]
[372108953,1752523849457,-460.0,0.0001726,2]
[372108955,1752523849466,-4899.4222743,0.00017279,2]
[372108957,1752523849475,-1680.0,0.0001728,2]
[372108959,1752523849485,-1000.0,0.00017321,2]
[372108961,1752523849494,-153.0,0.00017342,2]
[372108963,1752523849503,-1000.0,0.000175,2]
[372108965,1752523849512,-199.0,0.00017513,2]
[372108967,1752523849522,-460.0,0.00017533,2]
[372108969,1752523849532,-460.0,0.00017533,2]
[372108971,1752523849541,-5652.61,0.00017533,2]
[372108972,1752523849550,-766.81,0.00017533,2]
[372108974,1752523849560,-979.19,0.00017533,2]
[372108976,1752523849570,-1570.24,0.00017533,2]
[372108978,1752523849579,-1140.82,0.00017533,2]
[372108980,1752523849588,-988.79342678,0.00017534,2]
[372108982,1752523849597,-460.0,0.00017534,2]
[372108984,1752523849607,-460.0,0.00017534,2]
[372108986,1752523849617,-269.37691507,0.00017534,2]
[372108988,1752523849626,-460.0,0.00017534,2]
[372108990,1752523849636,-460.0,0.00017534,2]
[372108991,1752523849645,-460.0,0.00017534,2]
[372108993,1752523849654,-460.0,0.00017534,2]
[372108995,1752523849664,-460.0,0.00017534,2]
[372108997,1752523849674,-500.41962694,0.00017534,2]
[372108999,1752523849683,-460.0,0.00017534,2]
[372109001,1752523849693,-460.0,0.00017534,2]
[372109003,1752523849702,-151.0,0.00017534,2]
[372109005,1752523849712,-151.0,0.00017534,2]
[372109007,1752523849722,-460.0,0.00017534,2]
[372109009,1752523849731,-460.0,0.00017534,2]
[372109011,1752523849740,-460.0,0.00017534,2]
[372109024,1752523849866,-460.0,0.00017534,2]
[372109026,1752523849875,-460.0,0.00017534,2]
[372109028,1752523849885,-460.0,0.00017534,2]
[372109029,1752523849894,-460.0,0.00017534,2]
[372109031,1752523849904,-460.0,0.00017534,2]
[372109033,1752523849914,-460.0,0.00017534,2]
[372109035,1752523849923,-151.0,0.00017534,2]
[372109037,1752523849932,-460.0,0.00017534,2]
[372109039,1752523849942,-460.0,0.00017534,2]
[372109041,1752523849951,-460.0,0.00017534,2]
[372109043,1752523849961,-460.0,0.00017534,2]
[372109045,1752523849970,-460.0,0.00017534,2]
[372109047,1752523849979,-460.0,0.00017534,2]
[372109049,1752523849988,-460.0,0.00017534,2]
[372109050,1752523849997,-460.0,0.00017534,2]
[372109052,1752523850007,-244.17584719,0.00017534,2]
[372109054,1752523850016,-460.0,0.00017534,2]
[372109056,1752523850026,-488.69,0.00017534,2]
[372109058,1752523850035,-460.0,0.00017534,2]
[372109060,1752523850045,-460.0,0.00017534,2]
[372109062,1752523850055,-460.0,0.00017534,2]
[372109064,1752523850065,-460.0,0.00017534,2]
[372109066,1752523850075,-460.0,0.00017534,2]
[372109068,1752523850084,-514.19,0.00017534,2]
[372109070,1752523850094,-270.97257431,0.00017534,2]
[372109072,1752523850104,-190.247934,0.00017534,2]
[372109073,1752523850113,-460.0,0.00017534,2]
[372109075,1752523850122,-557.41,0.00017534,2]
[372109077,1752523850136,-460.0,0.00017534,2]
[372109079,1752523850146,-500.0,0.00017534,2]
[372109081,1752523850155,-460.0,0.00017534,2]
[372109083,1752523850164,-460.0,0.00017534,2]
[372109085,1752523850175,-460.0,0.00017534,2]
[372109087,1752523850186,-460.0,0.00017534,2]
[372109089,1752523850195,-796.36,0.00017534,2]
[372109091,1752523850204,-460.0,0.00017534,2]
[372109093,1752523850216,-460.0,0.00017534,2]
[372109094,1752523850226,-460.0,0.00017534,2]
[372109096,1752523850236,-841.78,0.00017534,2]
[372109098,1752523850245,-460.0,0.00017534,2]
[372109100,1752523850254,-460.0,0.00017534,2]
[372109102,1752523850264,-460.0,0.00017534,2]
[372109104,1752523850274,-460.0,0.00017534,2]
[372109106,1752523850283,-273.19767997,0.00017534,2]
[372109108,1752523850292,-460.0,0.00017534,2]
[372109110,1752523850304,-460.0,0.00017534,2]
[372109112,1752523850313,-247.78201409,0.00017534,2]
[372109114,1752523850323,-752.74,0.00017534,2]
[372109116,1752523850332,-460.0,0.00017534,2]
[372109118,1752523850341,-591.18,0.00017534,2]
[372109119,1752523850350,-460.98859306,0.00017534,2]
[372109121,1752523850361,-2405.54,0.00017534,2]
[372109123,1752523850371,-460.0,0.00017534,2]
[372109125,1752523850381,-460.0,0.00017534,2]
[372109127,1752523850391,-460.0,0.00017534,2]
[372109129,1752523850400,-460.0,0.00017534,2]
[372109131,1752523850409,-508.83,0.00017534,2]
[372109133,1752523850419,-460.0,0.00017534,2]
[372109135,1752523850428,-460.0,0.00017534,2]
[372109137,1752523850437,-460.0,0.00017534,2]
[372109139,1752523850447,-936.8,0.00017534,2]
[372109141,1752523850456,-986.06,0.00017534,2]
[372109143,1752523850465,-460.0,0.00017534,2]
[372109145,1752523850474,-523.68,0.00017534,2]
[372109146,1752523850484,-460.0,0.00017534,2]
[372109148,1752523850493,-751.76,0.00017534,2]
[372109150,1752523850503,-1466.15,0.00017534,2]
[372109152,1752523850512,-460.0,0.00017534,2]
[372109154,1752523850521,-492.2,0.00017534,2]
[372109156,1752523850530,-460.0,0.00017534,2]
[372109158,1752523850539,-460.0,0.00017534,2]
[372109160,1752523850549,-3285.73,0.00017534,2]
[372109162,1752523850558,-981.45,0.00017534,2]
[372109164,1752523850567,-460.0,0.00017534,2]
[372109166,1752523850576,-460.0,0.00017534,2]
[372109167,1752523850586,-547.0,0.00017534,2]
[372109169,1752523850596,-460.0,0.00017534,2]
[372109171,1752523850605,-460.0,0.00017534,2]
[372109173,1752523850615,-968.1,0.00017534,2]
[372109175,1752523850625,-460.0,0.00017534,2]
[372109177,1752523850634,-460.0,0.00017534,2]
[372109179,1752523850643,-4398.49,0.00017534,2]
[372109181,1752523850653,-4209.19,0.00017534,2]
[372109183,1752523850662,-460.0,0.00017534,2]
[372109185,1752523850671,-460.0,0.00017534,2]
[372109187,1752523850681,-460.0,0.00017534,2]
[372109188,1752523850690,-460.0,0.00017534,2]
[372109190,1752523850699,-460.0,0.00017534,2]
[372109192,1752523850708,-468.4,0.00017534,2]
[372109194,1752523850718,-481.24,0.00017534,2]
[372109196,1752523850727,-460.0,0.00017534,2]
[372109198,1752523850736,-645.53,0.00017534,2]
[372109200,1752523850746,-593.17,0.00017534,2]
[372109202,1752523850755,-460.0,0.00017534,2]
[372109204,1752523850765,-460.0,0.00017534,2]
[372109206,1752523850775,-460.0,0.00017534,2]
[372109208,1752523850784,-1221.52,0.00017534,2]
[372109210,1752523850793,-224.902329,0.00017534,2]
[372109212,1752523850803,-460.0,0.00017534,2]
[372109214,1752523850812,-460.0,0.00017534,2]
[372109215,1752523850821,-224.902329,0.00017534,2]
[372109217,1752523850830,-621.62,0.00017534,2]
[372109219,1752523850839,-2631.55,0.00017534,2]
[372109221,1752523850849,-1620.37,0.00017534,2]
[372109223,1752523850858,-460.0,0.00017534,2]
[372109225,1752523850868,-576.25,0.00017534,2]
[372109226,1752523850877,-460.0,0.00017534,2]
[372109227,1752523850887,-513.51,0.00017534,2]
[372109228,1752523850896,-460.0,0.00017534,2]
[372109229,1752523850904,-460.0,0.00017534,2]
[372109230,1752523850914,-1752.1,0.00017534,2]
[372109231,1752523850922,-460.0,0.00017534,2]
[372109232,1752523850931,-460.0,0.00017534,2]
[372109233,1752523850940,-460.0,0.00017534,2]
[372109234,1752523850950,-489.86,0.00017534,2]
[372109235,1752523850960,-460.0,0.00017534,2]
[372109236,1752523850969,-460.0,0.00017534,2]
[372109237,1752523850978,-460.0,0.00017534,2]
[372109238,1752523850988,-460.0,0.00017534,2]
[372109239,1752523850997,-701.36,0.00017534,2]
[372109240,1752523851006,-460.0,0.00017534,2]
[372109241,1752523851015,-460.0,0.00017534,2]
[372109242,1752523851024,-460.0,0.00017534,2]
[372109243,1752523851033,-460.0,0.00017534,2]
[372109244,1752523851043,-460.0,0.00017534,2]
[372109245,1752523851051,-237.77885004,0.00017534,2]
[372109246,1752523851061,-1583.58,0.00017534,2]
[372109247,1752523851070,-822.66,0.00017534,2]
[372109248,1752523851079,-460.0,0.00017534,2]
[372109249,1752523851089,-634.84,0.00017534,2]
[372109250,1752523851098,-779.7,0.00017534,2]
[372109251,1752523851109,-460.0,0.00017534,2]
[372109252,1752523851118,-519.83,0.00017534,2]
[372109253,1752523851127,-460.0,0.00017534,2]
[372109254,1752523851139,-460.0,0.00017534,2]
[372109255,1752523851148,-168.0,0.00017539,2]
[372109256,1752523851157,-4899.4222743,0.00017624,2]
[372109257,1752523851166,-199.0,0.00017661,2]
[372109258,1752523851175,-407.0,0.00017717,2]
[372109259,1752523851184,-412.142,0.00017717,2]
[372109260,1752523851193,-199.0,0.00017719,2]
[372109261,1752523851202,-156.546169,0.00017795,3]
[372109263,1752523851212,-460.0,0.00017807,2]
[372109264,1752523851221,-5652.61,0.00017807,2]
[372109266,1752523851230,-979.19,0.00017807,2]
[372109268,1752523851240,-766.81,0.00017807,2]
[372109270,1752523851249,-1570.24,0.00017807,2]
[372109271,1752523851258,-1140.82,0.00017807,2]
[372109273,1752523851268,-151.0,0.00017808,2]
[372109275,1752523851278,-460.0,0.00017808,2]
[372109277,1752523851287,-460.0,0.00017808,2]
[372109279,1752523851297,-460.0,0.00017808,2]
[372109281,1752523851306,-460.0,0.00017808,2]
[372109283,1752523851316,-460.0,0.00017808,2]
[372109285,1752523851326,-460.0,0.00017808,2]
[372109287,1752523851335,-460.0,0.00017808,2]
[372109289,1752523851344,-460.0,0.00017808,2]
[372109291,1752523851353,-460.0,0.00017808,2]
[372109293,1752523851363,-460.0,0.00017808,2]
[372109295,1752523851372,-460.0,0.00017808,2]
[372109297,1752523851381,-151.0,0.00017808,2]
[372109299,1752523851391,-460.0,0.00017808,2]
[372109301,1752523851400,-460.0,0.00017808,2]
[372109303,1752523851409,-460.0,0.00017808,2]
[372109305,1752523851419,-460.0,0.00017808,2]
[372109307,1752523851429,-556.16,0.00017808,2]
[372109309,1752523851438,-460.0,0.00017808,2]
[372109311,1752523851448,-460.0,0.00017808,2]
[372109313,1752523851458,-460.0,0.00017808,2]
[372109315,1752523851467,-460.0,0.00017808,2]
[372109317,1752523851477,-488.69,0.00017808,2]
[372109319,1752523851487,-460.0,0.00017808,2]
[372109321,1752523851496,-460.0,0.00017808,2]
[372109323,1752523851506,-460.0,0.00017808,2]
[372109325,1752523851515,-460.0,0.00017808,2]
[372109327,1752523851525,-514.19,0.00017808,2]
[372109329,1752523851534,-460.0,0.00017808,2]
[372109331,1752523851544,-557.41,0.00017808,2]
[372109333,1752523851554,-460.0,0.00017808,2]
[372109335,1752523851563,-500.0,0.00017808,2]
[372109337,1752523851572,-460.0,0.00017808,2]
[372109339,1752523851582,-460.0,0.00017808,2]
[372109341,1752523851591,-460.0,0.00017808,2]
[372109343,1752523851600,-460.0,0.00017808,2]
[372109345,1752523851611,-796.36,0.00017808,2]
[372109347,1752523851620,-407.23997002,0.00017808,2]
[372109349,1752523851629,-460.0,0.00017808,2]
[372109351,1752523851639,-841.78,0.00017808,2]
[372109353,1752523851648,-460.0,0.00017808,2]
[372109355,1752523851657,-460.0,0.00017808,2]
[372109357,1752523851667,-460.0,0.00017808,2]
[372109359,1752523851676,-460.0,0.00017808,2]
[372109361,1752523851685,-460.0,0.00017808,2]
[372109363,1752523851695,-752.74,0.00017808,2]
[372109365,1752523851704,-457.320865,0.00017808,2]
[372109367,1752523851714,-457.320865,0.00017808,2]
[372109369,1752523851723,-626.955,0.00017808,2]
[372109371,1752523851732,-178.092,0.00017808,2]
[372109373,1752523851742,-2405.54,0.00017808,2]
[372109375,1752523851751,-460.0,0.00017808,2]
[372109377,1752523851760,-460.0,0.00017808,2]
[372109379,1752523851770,-508.83,0.00017808,2]
[372109381,1752523851779,-460.0,0.00017808,2]
[372109383,1752523851789,-460.0,0.00017808,2]
[372109385,1752523851799,-936.8,0.00017808,2]
[372109387,1752523851809,-986.06,0.00017808,2]
[372109389,1752523851818,-460.0,0.00017808,2]
[372109391,1752523851827,-460.0,0.00017808,2]
[372109393,1752523851837,-751.76,0.00017808,2]
[372109395,1752523851847,-1466.15,0.00017808,2]
[372109397,1752523851855,-580.52143608,0.00017808,2]
[372109399,1752523851865,-492.2,0.00017808,2]
[372109401,1752523851874,-460.0,0.00017808,2]
[372109403,1752523851883,-460.0,0.00017808,2]
[372109405,1752523851893,-3285.73,0.00017808,2]
[372109407,1752523851903,-981.45,0.00017808,2]
[372109409,1752523851912,-195.13794482,0.00017808,2]
[372109411,1752523851921,-460.0,0.00017808,2]
[372109413,1752523851931,-460.0,0.00017808,2]
[372109415,1752523851940,-968.1,0.00017808,2]
[372109417,1752523851950,-460.0,0.00017808,2]
[372109419,1752523851959,-4398.49,0.00017808,2]
[372109421,1752523851968,-4209.19,0.00017808,2]
[372109423,1752523851977,-460.0,0.00017808,2]
[372109425,1752523851987,-460.0,0.00017808,2]
[372109427,1752523851996,-460.0,0.00017808,2]
[372109429,1752523852005,-460.0,0.00017808,2]
[372109431,1752523852014,-460.0,0.00017808,2]
[372109433,1752523852023,-468.4,0.00017808,2]
[372109435,1752523852032,-481.24,0.00017808,2]
[372109436,1752523852041,-645.53,0.00017808,2]
[372109439,1752523852051,-593.17,0.00017808,2]
[372109440,1752523852060,-460.0,0.00017808,2]
[372109443,1752523852070,-195.25503601,0.00017808,2]
[372109445,1752523852079,-1221.52,0.00017808,2]
[372109447,1752523852089,-460.0,0.00017808,2]
[372109449,1752523852099,-621.62,0.00017808,2]
[372109451,1752523852111,-2631.55,0.00017808,2]
[372109453,1752523852120,-1620.37,0.00017808,2]
[372109455,1752523852130,-460.0,0.00017808,2]
[372109457,1752523852143,-576.25,0.00017808,2]
[372109459,1752523852153,-460.0,0.00017808,2]
[372109461,1752523852163,-513.51,0.00017808,2]
[372109463,1752523852172,-460.0,0.00017808,2]
[372109465,1752523852182,-460.0,0.00017808,2]
[372109467,1752523852191,-1752.1,0.00017808,2]
[372109469,1752523852200,-460.0,0.00017808,2]
[372109471,1752523852210,-460.0,0.00017808,2]
[372109473,1752523852219,-460.0,0.00017808,2]
[372109475,1752523852229,-489.86,0.00017808,2]
[372109488,1752523852349,-460.0,0.00017808,2]
[372109490,1752523852361,-460.0,0.00017808,2]
[372109492,1752523852371,-460.0,0.00017808,2]
[372109494,1752523852380,-701.36,0.00017808,2]
[372109496,1752523852390,-460.0,0.00017808,2]
[372109498,1752523852399,-460.0,0.00017808,2]
[372109500,1752523852409,-460.0,0.00017808,2]
[372109502,1752523852418,-1583.58,0.00017808,2]
[372109504,1752523852428,-822.66,0.00017808,2]
[372109506,1752523852437,-460.0,0.00017808,2]
[372109508,1752523852446,-634.84,0.00017808,2]
[372109510,1752523852455,-779.7,0.00017808,2]
[372109513,1752523852466,-460.0,0.00017808,2]
[372109515,1752523852475,-519.83,0.00017808,2]
[372109517,1752523852485,-460.0,0.00017808,2]
[372109518,1752523852494,-293.0,0.00017835,2]
[372109520,1752523852503,-1986.71853967,0.00017848,2]
[372109523,1752523852513,-199.0,0.00017862,2]
[372109524,1752523852522,-1000.0,0.00017868,2]
[372109526,1752523852531,-284.94,0.00017879,2]
[372109528,1752523852540,-293.0,0.00017931,2]
[372109530,1752523852550,-4899.4222743,0.00017969,2]
[372109532,1752523852560,-199.0,0.00017998,2]
[372109534,1752523852569,-1000.0,0.00018,2]
[372109536,1752523852579,-500.0,0.00018043,2]
[372109538,1752523852589,-500.0,0.00018043,2]
[372109540,1752523852599,-500.0,0.00018043,2]
[372109543,1752523852611,-500.0,0.00018043,2]
[372109544,1752523852622,-500.0,0.00018043,2]
[372109546,1752523852631,-500.0,0.00018043,2]
[372109548,1752523852641,-500.0,0.00018043,2]
[372109550,1752523852650,-460.0,0.00018081,2]
[372109553,1752523852660,-5652.61,0.00018081,2]
[372109554,1752523852670,-979.19,0.00018081,2]
[372109556,1752523852679,-766.81,0.00018081,2]
[372109558,1752523852687,-1570.24,0.00018081,2]
[372109560,1752523852697,-1140.82,0.00018081,2]
[372109562,1752523852707,-151.0,0.00018082,2]
[372109564,1752523852716,-151.0,0.00018082,2]
[372109566,1752523852725,-219.878768,0.00018082,2]
[372109568,1752523852735,-219.878768,0.00018082,2]
[372109571,1752523852745,-460.0,0.00018082,2]
[372109573,1752523852755,-151.0,0.00018082,2]
[372109575,1752523852764,-460.0,0.00018082,2]
[372109577,1752523852774,-151.0,0.00018082,2]
[372109579,1752523852783,-460.0,0.00018082,2]
[372109581,1752523852793,-460.0,0.00018082,2]
[372109583,1752523852803,-207.87178,0.00018082,2]
[372109585,1752523852813,-207.87178,0.00018082,2]
[372109587,1752523852823,-460.0,0.00018082,2]
[372109589,1752523852833,-460.0,0.00018082,2]
[372109591,1752523852842,-460.0,0.00018082,2]
[372109593,1752523852852,-460.0,0.00018082,2]
[372109595,1752523852864,-460.0,0.00018082,2]
[372109597,1752523852873,-460.0,0.00018082,2]
[372109599,1752523852882,-460.0,0.00018082,2]
[372109601,1752523852892,-509.52753912,0.00018082,2]
[372109603,1752523852901,-460.0,0.00018082,2]
[372109605,1752523852911,-460.0,0.00018082,2]
[372109607,1752523852921,-488.69,0.00018082,2]
[372109609,1752523852930,-460.0,0.00018082,2]
[372109611,1752523852940,-460.0,0.00018082,2]
[372109613,1752523852950,-460.0,0.00018082,2]
[372109615,1752523852959,-514.19,0.00018082,2]
[372109617,1752523852969,-460.0,0.00018082,2]
[372109619,1752523852979,-557.41,0.00018082,2]
[372109621,1752523852988,-460.0,0.00018082,2]
[372109623,1752523852998,-500.0,0.00018082,2]
[372109625,1752523853007,-560.98,0.00018082,2]
[372109627,1752523853016,-460.0,0.00018082,2]
[372109629,1752523853025,-460.0,0.00018082,2]
[372109631,1752523853034,-796.36,0.00018082,2]
[372109633,1752523853043,-460.0,0.00018082,2]
[372109635,1752523853053,-841.78,0.00018082,2]
[372109637,1752523853062,-460.0,0.00018082,2]
[372109638,1752523853071,-460.0,0.00018082,2]
[372109640,1752523853080,-460.0,0.00018082,2]
[372109642,1752523853089,-460.0,0.00018082,2]
[372109644,1752523853098,-460.0,0.00018082,2]
[372109646,1752523853110,-752.74,0.00018082,2]
[372109648,1752523853119,-2405.54,0.00018082,2]
[372109650,1752523853129,-460.0,0.00018082,2]
[372109652,1752523853142,-460.0,0.00018082,2]
[372109654,1752523853152,-508.83,0.00018082,2]
[372109656,1752523853161,-460.0,0.00018082,2]
[372109658,1752523853171,-460.0,0.00018082,2]
[372109660,1752523853180,-936.8,0.00018082,2]
[372109662,1752523853190,-986.06,0.00018082,2]
[372109664,1752523853199,-460.0,0.00018082,2]
[372109666,1752523853210,-271.56123046,0.00018082,2]
[372109668,1752523853219,-751.76,0.00018082,2]
[372109670,1752523853228,-1466.15,0.00018082,2]
[372109672,1752523853237,-492.2,0.00018082,2]
[372109674,1752523853247,-460.0,0.00018082,2]
[372109676,1752523853257,-460.0,0.00018082,2]
[372109678,1752523853265,-3285.73,0.00018082,2]
[372109680,1752523853276,-981.45,0.00018082,2]
[372109682,1752523853285,-460.0,0.00018082,2]
[372109684,1752523853295,-460.0,0.00018082,2]
[372109686,1752523853304,-968.1,0.00018082,2]
[372109688,1752523853313,-4398.49,0.00018082,2]
[372109690,1752523853322,-4209.19,0.00018082,2]
[372109692,1752523853332,-460.0,0.00018082,2]
[372109694,1752523853341,-460.0,0.00018082,2]
[372109696,1752523853350,-468.4,0.00018082,2]
[372109698,1752523853360,-460.0,0.00018082,2]
[372109700,1752523853369,-481.24,0.00018082,2]
[372109702,1752523853379,-645.53,0.00018082,2]
[372109704,1752523853388,-593.17,0.00018082,2]
[372109706,1752523853398,-460.0,0.00018082,2]
[372109708,1752523853407,-1221.52,0.00018082,2]
[372109710,1752523853416,-621.62,0.00018082,2]
[372109712,1752523853425,-2631.55,0.00018082,2]
[372109714,1752523853435,-1620.37,0.00018082,2]
[372109716,1752523853444,-460.0,0.00018082,2]
[372109718,1752523853453,-576.25,0.00018082,2]
[372109720,1752523853462,-460.0,0.00018082,2]
[372109722,1752523853471,-460.0,0.00018082,2]